fUST/lending_fUST_20251012
["ID","MTS","AMOUNT","RATE_DAILY","PERIOD"]
[390910105,1760211457831,-455.98,0.00022589,2]
[390910106,1760211457870,-500.0,0.00022589,2]
[390910107,1760211457897,-579.16,0.00022589,2]
[390910108,1760211457926,-579.16,0.00022589,2]
[390910109,1760211457955,-579.16,0.00022589,2]
[390910110,1760211457982,-579.16,0.00022589,2]
[390910111,1760211458010,-579.16,0.00022589,2]
[390910112,1760211458039,-579.16,0.00022589,2]
[390910113,1760211458067,-579.16,0.00022589,2]
[390910114,1760211458096,-312.61,0.00022589,2]
[390910115,1760211458198,-266.55,0.00022589,2]
[390910116,1760211458227,-579.16,0.00022589,2]
[390910117,1760211458255,-579.16,0.00022589,2]
[390910118,1760211458284,-579.16,0.00022589,2]
[390910119,1760211458312,-579.16,0.00022589,2]
[390910120,1760211458341,-579.16,0.00022589,2]
[390910121,1760211458370,-579.16,0.00022589,2]
[390910122,1760211458397,-579.16,0.00022589,2]
[390910123,1760211458424,-579.16,0.00022589,2]
[390910124,1760211458555,-579.16,0.00022589,2]
[390910125,1760211458584,-579.16,0.00022589,2]
[390910126,1760211458615,-579.16,0.00022589,2]
[390910127,1760211458646,-579.16,0.00022589,2]
[390910128,1760211458674,-579.16,0.00022589,2]
[390910129,1760211458706,-579.16,0.00022589,2]
[390910130,1760211458735,-579.16,0.00022589,2]
[390910131,1760211458764,-579.29,0.00022589,2]
[390910132,1760211458795,-233.19,0.00022589,2]
[390910133,1760211458950,-266.81,0.00022589,2]
[390910134,1760211458979,-355.9856569,0.00022589,2]
[390910135,1760211459008,-500.0,0.00022589,2]
[390910136,1760211459041,-500.0,0.00022589,2]
[390910137,1760211459071,-156.92,0.00022589,2]
[390910138,1760211459102,-500.0,0.00022589,2]
[390910139,1760211459131,-500.0,0.00022589,2]
[390910140,1760211459158,-500.0,0.00022589,2]
[390910141,1760211459185,-500.0,0.00022589,2]
[390910142,1760211459213,-500.0,0.00022589,2]
[390910143,1760211459241,-500.0,0.00022589,2]
[390910144,1760211459587,-500.0,0.00022589,2]
[390910145,1760211459614,-500.0,0.00022589,2]
[390910146,1760211459640,-500.0,0.00022589,2]
[390910147,1760211459665,-635.9,0.00022589,2]
[390910148,1760211459690,-500.0,0.00022589,2]
[390910149,1760211459720,-500.0,0.00022589,2]
[390910150,1760211459747,-500.0,0.00022589,2]
[390910151,1760211459773,-500.0,0.00022589,2]
[390910152,1760211459802,-500.0,0.00022589,2]
[390910153,1760211459829,-228.21,0.00022589,2]
[390910154,1760211460682,-271.79,0.00022589,2]
[390910155,1760211460713,-500.0,0.00022589,2]
[390910156,1760211460741,-500.0,0.00022589,2]
[390910157,1760211460769,-500.0,0.00022589,2]
[390910158,1760211460799,-500.0,0.00022589,2]
[390910159,1760211460827,-500.0,0.00022589,2]
[390910160,1760211460948,-500.0,0.00022589,2]
[390910161,1760211460977,-500.0,0.00022589,2]
[390910162,1760211461005,-500.0,0.00022589,2]
[390910163,1760211461032,-500.0,0.00022589,2]
[390910164,1760211461061,-113.36,0.00022589,2]
[390910165,1760211461198,-229.71,0.00022589,2]
[390910166,1760211461942,500.0,0.00022587,2]
[390910167,1760211461973,500.0,0.00022587,2]
[390910168,1760211462000,649.33819612,0.00022588,3]
[390910169,1760211462035,162.38,0.00022587,2]
[390910170,1760211462503,500.0,0.00022587,2]
[390910171,1760211462686,500.0,0.00022587,2]
[390910172,1760211463092,500.0,0.00022587,2]
[390910173,1760211463351,500.0,0.00022587,2]
[390910174,1760211463604,500.0,0.00022587,2]
[390910175,1760211463844,500.0,0.00022587,2]
[390910176,1760211464087,500.0,0.00022587,2]
[390910177,1760211464371,385.54,0.00022587,2]
[390910178,1760211469288,-500.0,0.0002259,2]
[390910179,1760211469315,-500.0,0.0002259,2]
[390910180,1760211469342,-500.0,0.0002259,2]
[390910181,1760211469370,-500.0,0.0002259,2]
[390910182,1760211469397,-500.0,0.0002259,2]
[390910183,1760211469424,-500.0,0.0002259,2]
[390910184,1760211469452,-385.84,0.0002259,2]
[390910185,1760211469479,-283.99824418,0.0002259,2]
[390910186,1760211469505,-500.0,0.0002259,2]
[390910187,1760211469532,-500.0,0.0002259,2]
[390910188,1760211469560,-160.33351164,0.0002259,2]
[390910189,1760211469744,-339.66648836,0.0002259,2]
[390910190,1760211469772,-614.74,0.0002259,2]
[390910191,1760211469801,-500.0,0.0002259,2]
[390910192,1760211469828,-500.0,0.0002259,2]
[390910193,1760211469856,-500.0,0.0002259,2]
[390910194,1760211469885,-500.0,0.0002259,2]
[390910195,1760211469913,-500.0,0.0002259,2]
[390910196,1760211469940,-500.0,0.0002259,2]
[390910197,1760211469968,-500.0,0.0002259,2]
[390910198,1760211469998,-500.0,0.0002259,2]
[390910199,1760211470300,-210.24,0.0002259,2]
[390910200,1760211470327,-623.00959751,0.0002259,2]
[390910201,1760211470353,-500.0,0.0002259,2]
[390910202,1760211470382,-500.0,0.0002259,2]
[390910203,1760211470408,-500.0,0.0002259,2]
[390910204,1760211470433,-500.0,0.0002259,2]
[390910205,1760211470459,-296.89,0.0002259,2]
[390910206,1760211470488,-500.0,0.0002259,2]
[390910207,1760211470514,-500.0,0.0002259,2]
[390910208,1760211470539,-500.0,0.0002259,2]
[390910209,1760211470565,-239.73080498,0.0002259,2]
[390910210,1760211470812,-260.26919502,0.0002259,2]
[390910211,1760211470839,-500.0,0.0002259,2]
[390910212,1760211470869,-500.0,0.0002259,2]
[390910213,1760211470896,-500.0,0.0002259,2]
[390910214,1760211470925,-500.0,0.0002259,2]
[390910215,1760211470953,-500.0,0.0002259,2]
[390910216,1760211470981,-500.0,0.0002259,2]
[390910217,1760211471009,-205.69,0.0002259,2]
[390910218,1760211471037,-500.0,0.0002259,2]
[390910219,1760211471064,-500.0,0.0002259,2]
[390910220,1760211471092,-500.0,0.0002259,2]
[390910221,1760211471182,500.0,0.00022588,2]
[390910222,1760211471270,-500.0,0.0002259,2]
[390910223,1760211471297,-500.0,0.0002259,2]
[390910224,1760211471324,-500.0,0.0002259,2]
[390910225,1760211471353,-500.0,0.0002259,2]
[390910226,1760211471385,-500.0,0.0002259,2]
[390910227,1760211471415,-500.0,0.0002259,2]
[390910228,1760211471443,-500.0,0.0002259,2]
[390910229,1760211471471,-500.0,0.0002259,2]
[390910230,1760211471498,-500.0,0.0002259,2]
[390910231,1760211471525,-500.0,0.0002259,2]
[390910232,1760211471564,-500.0,0.0002259,2]
[390910233,1760211471592,-500.0,0.0002259,2]
[390910234,1760211471620,-479.1,0.0002259,2]
[390910235,1760211471648,-500.0,0.0002259,2]
[390910236,1760211471675,-500.0,0.0002259,2]
[390910237,1760211471703,-500.0,0.0002259,2]
[390910238,1760211471829,-500.0,0.0002259,2]
[390910239,1760211471857,-311.62,0.0002259,2]
[390910240,1760211471887,-691.01,0.0002259,2]
[390910241,1760211471918,-345.54,0.0002259,2]
[390910242,1760211471944,500.0,0.00022588,2]
[390910243,1760211472003,500.0,0.00022589,2]
[390910244,1760211472256,500.0,0.00022588,2]
[390910245,1760211472398,151.14,0.00022589,2]
[390910246,1760211472470,500.0,0.00022588,2]
[390910247,1760211477506,500.0,0.00022589,2]
[390910248,1760211477744,500.0,0.00022589,2]
[390910249,1760211477989,192.19180388,0.00022589,2]
[390910250,1760211478014,402.44819612,0.00022589,2]
[390910251,1760211478057,5000.0,0.00022589,2]
[390910252,1760211479381,-345.47,0.0002259,2]
[390910253,1760211479408,-691.01,0.0002259,2]
[390910254,1760211479436,-691.01,0.0002259,2]
[390910255,1760211479464,-691.01,0.0002259,2]
[390910256,1760211479491,-691.01,0.0002259,2]
[390910257,1760211479517,-691.01,0.0002259,2]
[390910258,1760211479544,-691.01,0.0002259,2]
[390910259,1760211479570,-325.94,0.0002259,2]
[390910260,1760211479861,-365.07,0.0002259,2]
[390910261,1760211479891,-691.01,0.0002259,2]
[390910262,1760211479921,-691.01,0.0002259,2]
[390910263,1760211479952,-691.01,0.0002259,2]
[390910264,1760211479980,-691.01,0.0002259,2]
[390910265,1760211480007,-691.01,0.0002259,2]
[390910266,1760211480035,-691.01,0.0002259,2]
[390910267,1760211480063,-286.74,0.0002259,2]
[390910268,1760211480304,-404.27,0.0002259,2]
[390910269,1760211480333,-691.01,0.0002259,2]
[390910270,1760211480362,-691.01,0.0002259,2]
[390910271,1760211480393,-691.01,0.0002259,2]
[390910272,1760211480421,-691.01,0.0002259,2]
[390910273,1760211480449,-691.01,0.0002259,2]
[390910274,1760211480478,-691.01,0.0002259,2]
[390910275,1760211480506,-208.34,0.0002259,2]
[390910276,1760211480665,280.41,0.00015494,2]
[390910277,1760211480857,-482.67,0.0002259,2]
[390910278,1760211480889,-691.01,0.0002259,2]
[390910279,1760211480920,-500.0,0.0002259,2]
[390910280,1760211480948,-500.0,0.0002259,2]
[390910281,1760211480976,-500.0,0.0002259,2]
[390910282,1760211481004,-500.0,0.0002259,2]
[390910283,1760211481034,-500.0,0.0002259,2]
[390910284,1760211481068,-592.85,0.0002259,2]
[390910285,1760211481097,-500.0,0.0002259,2]
[390910286,1760211481173,280.41,0.00015494,2]
[390910287,1760211481371,-500.0,0.0002259,2]
[390910288,1760211481399,-500.0,0.0002259,2]
[390910289,1760211481428,-500.0,0.0002259,2]
[390910290,1760211481457,-500.0,0.0002259,2]
[390910291,1760211481485,-500.0,0.0002259,2]
[390910292,1760211481512,-169.06,0.0002259,2]
[390910293,1760211481538,-500.0,0.0002259,2]
[390910294,1760211481564,-500.0,0.0002259,2]
[390910295,1760211481592,-500.0,0.0002259,2]
[390910296,1760211481619,-500.0,0.0002259,2]
[390910297,1760211481646,-330.34,0.0002259,2]
[390910298,1760211481677,280.41,0.00015494,2]
[390910299,1760211481803,-500.0,0.0002259,2]
[390910300,1760211481831,-500.0,0.0002259,2]
[390910301,1760211481857,-515.84,0.0002259,2]
[390910302,1760211481884,-500.0,0.0002259,2]
[390910303,1760211482976,300.0,0.00022589,2]
[390910304,1760211483004,500.0,0.00022586,2]
[390910305,1760211483031,500.0,0.00022586,2]
[390910306,1760211484210,500.0,0.00022587,2]
[390910307,1760211484440,500.0,0.00022587,2]
[390910308,1760211484677,500.0,0.00022587,2]
[390910309,1760211486367,500.0,0.0002259,2]
[390910310,1760211486602,500.0,0.0002259,2]
[390910311,1760211486883,500.0,0.0002259,2]
[390910312,1760211487127,500.0,0.0002259,2]
[390910313,1760211487508,500.0,0.0002259,2]
[390910314,1760211487590,500.0,0.0002259,2]
[390910315,1760211487856,168.33,0.0002259,2]
[390910316,1760211487881,331.67,0.0002259,2]
[390910317,1760211488097,-564.34,0.00022932,2]
[390910318,1760211488129,-157.87764516,0.00022932,2]
[390910319,1760211488203,500.0,0.0002259,2]
[390910320,1760211488364,291.44,0.0002259,2]
[390910321,1760211490172,500.0,0.00022588,2]
[390910322,1760211490419,500.0,0.00022588,2]
[390910323,1760211490694,500.0,0.00022588,2]
[390910324,1760211495477,614.09,0.00022586,2]
[390910325,1760211496150,500.0,0.0002259,2]
[390910326,1760211496688,500.0,0.0002259,2]
[390910327,1760211496838,-300.0,0.00023039,20]
[390910328,1760211496867,-300.0,0.00023039,20]
[390910329,1760211496899,-300.0,0.00023039,20]
[390910330,1760211496929,-300.0,0.00023039,20]
[390910331,1760211496958,-300.0,0.00023039,20]
[390910332,1760211496989,-300.0,0.00023039,20]
[390910333,1760211497019,-300.0,0.00023039,20]
[390910334,1760211497052,-300.0,0.00023039,20]
[390910335,1760211497083,-300.0,0.00023039,20]
[390910336,1760211497112,-300.0,0.00023039,20]
[390910337,1760211497143,-300.0,0.00023039,20]
[390910338,1760211497172,-300.0,0.00023039,20]
[390910339,1760211497202,-300.0,0.00023039,20]
[390910340,1760211497232,-300.0,0.00023039,20]
[390910341,1760211497261,-300.0,0.00023039,20]
[390910342,1760211497290,-400.01,0.00023039,20]
[390910343,1760211497425,500.0,0.0002259,2]
[390910344,1760211498000,-199.99,0.00023039,20]
[390910345,1760211498120,500.0,0.00022589,2]
[390910346,1760211499143,500.0,0.00022589,2]
[390910347,1760211499398,500.0,0.00022589,2]
[390910348,1760211499632,500.0,0.00022589,2]
[390910349,1760211499763,173.75,0.00019404,2]
[390910350,1760211500166,347.5,0.00021168,2]
[390910351,1760211500574,521.25,0.00022932,2]
[390910352,1760211500642,5000.0,0.00023039,2]
[390910353,1760211502350,-1000.0,0.00023121,2]
[390910354,1760211502376,-1000.0,0.00023121,2]
[390910355,1760211502597,500.0,0.00022587,2]
[390910356,1760211502833,500.0,0.00022587,2]
[390910357,1760211503069,500.0,0.00022587,2]
[390910358,1760211503329,598.29,0.00022587,2]
[390910359,1760211504366,150.0,0.0002384,30]
[390910360,1760211518493,500.0,0.00022588,2]
[390910361,1760211518747,500.0,0.00022588,2]
[390910362,1760211518981,500.0,0.00022588,2]
[390910363,1760211520482,500.0,0.00022588,2]
[390910364,1760211520666,500.0,0.00022588,2]
[390910365,1760211520892,500.0,0.00022588,2]
[390910366,1760211521165,500.0,0.00022588,2]
[390910367,1760211521396,500.0,0.00022588,2]
[390910368,1760211521626,500.0,0.00022588,2]
[390910369,1760211521874,500.0,0.00022588,2]
[390910370,1760211522131,500.0,0.00022588,2]
[390910371,1760211522387,500.0,0.00022588,2]
[390910372,1760211522647,235.34,0.00022588,2]
[390910373,1760211523085,1578.19886641,0.00023121,2]
[390910374,1760211526352,500.0,0.0002259,2]
[390910375,1760211526438,227.99,0.0002259,2]
[390910376,1760211526687,709.52,0.00022586,2]
[390910377,1760211526954,709.52,0.00022586,2]
[390910378,1760211527092,39.44113359,0.00022587,2]
[390910379,1760211527114,461.36394388,0.00022587,2]
[390910380,1760211527192,709.52,0.00022586,2]
[390910381,1760211527497,709.52,0.00022586,2]
[390910382,1760211527704,709.52,0.00022586,2]
[390910383,1760211528015,709.52,0.00022586,2]
[390910384,1760211528188,709.52,0.00022586,2]
[390910385,1760211528439,709.52,0.00022586,2]
[390910386,1760211528664,709.52,0.00022586,2]
[390910387,1760211528919,709.52,0.00022586,2]
[390910388,1760211529152,709.52,0.00022586,2]
[390910389,1760211529384,709.52,0.00022586,2]
[390910390,1760211529674,709.52,0.00022586,2]
[390910391,1760211529916,709.52,0.00022586,2]
[390910392,1760211530157,709.52,0.00022586,2]
[390910393,1760211530400,314.88605612,0.00022586,2]
[390910394,1760211530427,394.63394388,0.00022586,2]
[390910395,1760211530622,709.52,0.00022586,2]
[390910396,1760211530887,709.52,0.00022586,2]
[390910397,1760211531138,709.52,0.00022586,2]
[390910398,1760211531369,709.52,0.00022586,2]
[390910399,1760211531633,709.52,0.00022586,2]
[390910400,1760211531887,709.52,0.00022586,2]
[390910401,1760211532128,709.52,0.00022586,2]
[390910402,1760211532484,709.61,0.00022586,2]
[390910403,1760211539352,500.0,0.00022586,2]
[390910404,1760211539571,500.0,0.00022586,2]
[390910405,1760211539803,500.0,0.00022586,2]
[390910406,1760211540040,500.0,0.00022586,2]
[390910407,1760211540390,500.0,0.00022586,2]
[390910408,1760211540629,500.0,0.00022586,2]
[390910409,1760211540863,500.0,0.00022586,2]
[390910410,1760211541193,500.0,0.00022586,2]
[390910411,1760211541417,500.0,0.00022586,2]
[390910412,1760211541651,500.0,0.00022586,2]
[390910413,1760211541888,500.0,0.00022586,2]
[390910414,1760211542152,500.0,0.00022586,2]
[390910415,1760211542184,500.0,0.00022586,2]
[390910416,1760211542392,500.0,0.00022586,2]
[390910417,1760211542420,416.0913483,0.00022586,2]
[390910418,1760211542643,500.0,0.00022586,2]
[390910419,1760211542893,500.0,0.00022586,2]
[390910420,1760211543142,407.38,0.00022586,2]
[390910421,1760211545061,500.0,0.00022586,2]
[390910422,1760211558796,500.0,0.00022586,2]
[390910423,1760211559031,500.0,0.00022586,2]
[390910424,1760211559257,500.0,0.00022586,2]
[390910425,1760211559508,500.0,0.00022586,2]
[390910426,1760211559724,500.0,0.00022587,2]
[390910427,1760211559882,500.0,0.00022586,2]
[390910428,1760211559991,500.0,0.00022586,2]
[390910429,1760211560235,508.83,0.00022586,2]
[390910430,1760211563513,500.0,0.00022589,2]
[390910431,1760211563748,500.0,0.00022589,2]
[390910432,1760211563992,500.0,0.00022589,2]
[390910436,1760211570207,500.0,0.00022586,2]
[390910437,1760211570452,500.0,0.00022586,2]
[390910438,1760211570695,500.0,0.00022586,2]
[390910439,1760211570949,500.0,0.00022586,2]
[390910440,1760211571270,500.0,0.00022586,2]
[390910441,1760211571511,500.0,0.00022586,2]
[390910442,1760211571757,500.0,0.00022586,2]
[390910443,1760211571997,500.0,0.00022586,2]
[390910444,1760211572255,491.18,0.00022586,2]
[390910445,1760211572277,8.82,0.00022586,2]
[390910446,1760211572512,500.0,0.00022586,2]
[390910447,1760211572773,500.0,0.00022586,2]
[390910448,1760211573046,500.0,0.00022586,2]
[390910449,1760211573279,500.0,0.00022586,2]
[390910450,1760211573541,500.0,0.00022586,2]
[390910451,1760211573805,500.0,0.00022586,2]
[390910452,1760211574051,500.0,0.00022586,2]
[390910453,1760211574283,500.0,0.00022586,2]
[390910454,1760211574520,500.0,0.00022586,2]
[390910455,1760211574772,500.0,0.00022586,2]
[390910456,1760211575003,500.0,0.00022586,2]
[390910457,1760211575240,500.0,0.00022586,2]
[390910458,1760211575482,266.10333747,0.00022586,2]
[390910459,1760211576992,510.0,0.00022588,2]
[390910461,1760211579043,158.57,0.00019276,2]
[390910462,1760211579446,317.14,0.00021029,2]
[390910463,1760211579846,475.72,0.00022781,2]
[390910464,1760211580671,500.0,0.00022589,2]
[390910465,1760211582291,500.0,0.00022586,2]
[390910466,1760211582548,500.0,0.00022586,2]
[390910467,1760211590533,500.0,0.00022589,2]
[390910468,1760211590777,263.65666253,0.00022589,2]
[390910469,1760211590817,7.64333747,0.00022589,2]
[390910470,1760211596265,500.0,0.0002259,2]
[390910471,1760211596502,500.0,0.0002259,2]
[390910472,1760211596736,500.0,0.0002259,2]
[390910473,1760211603017,500.0,0.00022586,2]
[390910474,1760211603629,270.33906714,0.00022586,2]
[390910481,1760211658490,163.5,0.00019283,2]
[390910482,1760211683097,5000.0,0.00021,2]
[390910483,1760211699632,-326.99,0.00021036,2]
[390910484,1760211727983,151.0,0.00017,2]
[390910485,1760211728982,151.0,0.0001805,2]
[390910486,1760211730074,151.0,0.000191,2]
[390910487,1760211733548,-300.0,0.00021918,2]
[390910488,1760211735019,-153.90615407,0.00021918,2]
[390910489,1760211738347,281.61,0.00019324,2]
[390910490,1760211738745,563.21,0.00021081,2]
[390910491,1760211763472,-162.62681016,0.00021918,2]
[390910492,1760211764987,-234.93634612,0.00021918,2]
[390910493,1760211767016,-276.96460283,0.00021918,2]
[390910494,1760211769332,-331.2184271,0.00021918,2]
[390910495,1760211770464,1135.656576,0.00013699,2]
[390910496,1760211770683,1135.656576,0.00020187,2]
[390910497,1760211771481,-263.35740281,0.00021918,2]
[390910498,1760211775638,-224.80706707,0.00021918,2]
[390910499,1760211789446,-343.47634642,0.00021918,2]
[390910500,1760211790885,-166.95068232,0.00021918,2]
[390910501,1760211808594,-180.54889743,0.00021918,2]
[390910502,1760211810525,-156.76143765,0.00021918,2]
[390910503,1760211817712,-2204.44582602,0.00021918,2]
[390910504,1760211824041,5000.0,0.00021918,2]
[390910505,1760211824589,293.57,0.00019321,2]
[390910506,1760211825161,297.54834796,0.00021077,2]
[390910507,1760211825183,289.60165204,0.00021077,2]
[390910508,1760211830596,201.84268453,0.00020603,3]
[390910509,1760211832516,5000.0,0.00022039,2]
[390910510,1760211840963,5000.0,0.00022039,2]
[390910511,1760211864803,5000.0,0.00021699,2]
[390910512,1760211883578,-215.76933151,0.000218,2]
[390910513,1760211886739,5000.0,0.00021699,2]
[390910514,1760211908615,1234.82654497,0.00021699,2]
[390910515,1760211913030,328.77,0.00019071,2]
[390910516,1760211913428,657.54,0.00020804,2]
[390910517,1760211982121,300.0,0.000208,2]
[390910518,1760211993117,300.0,0.000208,2]
[390910519,1760211993295,316.22,0.00019061,2]
[390910520,1760211993725,632.44,0.00020793,2]
[390910521,1760212003595,300.0,0.000208,2]
[390910522,1760212015362,300.0,0.000208,2]
[390910523,1760212026249,300.0,0.000208,2]
[390910524,1760212033469,-510.90818769,0.000218,2]
[390910525,1760212043878,5000.0,0.00021699,2]
[390910526,1760212048289,-334.03048592,0.00021816,2]
[390910527,1760212052036,5000.0,0.00021699,2]
[390910528,1760212060026,191.10430602,0.00021816,2]
[390910529,1760212067811,5000.0,0.00021699,2]
[390910530,1760212073707,304.14,0.0001906,2]
[390910531,1760212074142,608.29,0.00020793,2]
[390910532,1760212076363,5000.0,0.00021916,2]
[390910533,1760212084108,4999.97,0.00021916,2]
[390910534,1760212086535,-1200.0,0.00021916,2]
[390910535,1760212092238,5000.0,0.00021916,2]
[390910536,1760212100224,5000.0,0.00021699,2]
[390910537,1760212115437,5000.0,0.00021699,2]
[390910538,1760212123249,5000.0,0.00021699,2]
[390910539,1760212138732,5000.0,0.00021699,2]
[390910540,1760212143475,155.0,0.00020603,3]
[390910541,1760212146528,5000.0,0.00021699,2]
[390910542,1760212153150,313.37,0.00019283,2]
[390910543,1760212153576,626.73,0.00021036,2]
[390910544,1760212162368,5000.0,0.00021699,2]
[390910545,1760212170150,5000.0,0.00021699,2]
[390910546,1760212185907,5000.0,0.00021699,2]
[390910547,1760212190723,-300.0,0.000217,2]
[390910548,1760212190744,-66.02684716,0.000217,2]
[390910549,1760212193776,0.01,0.00021699,2]
[390910550,1760212193799,4999.99,0.00021699,2]
[390910551,1760212201875,366.02684716,0.0002161,2]
[390910552,1760212209727,5000.0,0.0002161,2]
[390910553,1760212218481,4633.98315284,0.0002161,2]
[390910554,1760212218503,366.01684716,0.0002161,2]
[390910589,1760212232681,-300.0,0.000217,2]
[390910591,1760212232690,-300.0,0.000217,2]
[390910593,1760212232699,-300.0,0.000217,2]
[390910595,1760212232708,-173.39891302,0.000219,2]
[390910597,1760212232718,-166.84448562,0.00022036,2]
[390910599,1760212232727,-1200.0,0.00022136,2]
[390910601,1760212232736,-199.40874997,0.000225,2]
[390910603,1760212232745,-1200.0,0.00022571,2]
[390910605,1760212232754,-300.0,0.00022572,2]
[390910608,1760212232763,-300.0,0.00022572,2]
[390910610,1760212232772,-300.0,0.00022572,2]
[390910613,1760212232781,-300.0,0.00022572,2]
[390910615,1760212232792,-300.0,0.00022572,2]
[390910617,1760212232801,-500.0,0.00022573,2]
[390910619,1760212232811,-500.0,0.00022573,2]
[390910621,1760212232821,-500.0,0.00022573,2]
[390910623,1760212232831,-500.9986309,0.00022573,2]
[390910625,1760212232841,-500.0,0.00022584,2]
[390910627,1760212232850,-500.0,0.00022584,2]
[390910629,1760212232860,-500.0,0.00022584,2]
[390910631,1760212232870,-500.0,0.00022584,2]
[390910633,1760212232879,-500.0,0.00022584,2]
[390910635,1760212232889,-500.0,0.00022584,2]
[390910637,1760212232898,-500.0,0.00022584,2]
[390910639,1760212232907,-611.31911357,0.00022584,2]
[390910641,1760212232918,-500.0,0.00022585,2]
[390910643,1760212232927,-500.0,0.00022585,2]
[390910644,1760212232936,-501.34326785,0.00022585,2]
[390910646,1760212232952,-500.0,0.00022585,2]
[390910648,1760212232962,-500.0,0.00022585,2]
[390910650,1760212232970,-220.96596578,0.00022585,2]
[390910651,1760212232979,-500.0,0.00022585,2]
[390910653,1760212232990,-500.0,0.00022585,2]
[390910655,1760212232999,-500.0,0.00022585,2]
[390910657,1760212233009,-500.0,0.00022585,2]
[390910659,1760212233019,-500.0,0.00022585,2]
[390910661,1760212233028,-500.0,0.00022585,2]
[390910663,1760212233038,-500.0,0.00022585,2]
[390910665,1760212233047,-500.0,0.00022585,2]
[390910666,1760212233056,-500.0,0.00022585,2]
[390910667,1760212233065,-500.0,0.00022585,2]
[390910668,1760212233075,-500.0,0.00022585,2]
[390910669,1760212233085,-500.0,0.00022585,2]
[390910670,1760212233094,-500.0,0.00022585,2]
[390910671,1760212233104,-500.0,0.00022585,2]
[390910672,1760212233114,-500.0,0.00022585,2]
[390910673,1760212233123,-500.0,0.00022585,2]
[390910674,1760212233133,-371.82,0.00022585,2]
[390910676,1760212233143,-540.2983542,0.00022585,2]
[390910678,1760212233153,-500.0,0.00022585,2]
[390910680,1760212233163,-500.0,0.00022585,2]
[390910682,1760212233172,-500.0,0.00022585,2]
[390910684,1760212233181,-500.0,0.00022585,2]
[390910685,1760212233190,-500.0,0.00022585,2]
[390910687,1760212233200,-500.0,0.00022585,2]
[390910688,1760212233209,-197.86,0.00022585,2]
[390910689,1760212233219,-500.0,0.00022585,2]
[390910691,1760212233228,-500.0,0.00022585,2]
[390910692,1760212233237,-500.0,0.00022585,2]
[390910693,1760212233247,-500.0,0.00022585,2]